fUST/lending_fUST_20250623
["ID","MTS","AMOUNT","RATE_DAILY","PERIOD"]
[367072924,1750647051669,-669.77,0.00022465,2]
[367072925,1750647051678,-460.0,0.00022465,2]
[367072926,1750647051687,-1096.26,0.00022465,2]
[367072927,1750647051697,-1700.94,0.00022465,2]
[367072928,1750647051707,-2967.17,0.00022465,2]
[367072929,1750647051717,-460.0,0.00022465,2]
[367072930,1750647051726,-1145.01,0.00022465,2]
[367072931,1750647051735,-460.0,0.00022465,2]
[367072932,1750647051745,-460.0,0.00022465,2]
[367072933,1750647051754,-898.98,0.00022465,2]
[367072934,1750647051763,-460.0,0.00022465,2]
[367072935,1750647051773,-861.06,0.00022465,2]
[367072936,1750647051783,-830.62,0.00022465,2]
[367072937,1750647051793,-460.0,0.00022465,2]
[367072938,1750647051802,-460.0,0.00022465,2]
[367072939,1750647051812,-726.26,0.00022465,2]
[367072940,1750647051821,-460.0,0.00022465,2]
[367072941,1750647051831,-460.0,0.00022465,2]
[367072942,1750647051840,-460.0,0.00022465,2]
[367072943,1750647051849,-754.58,0.00022465,2]
[367072944,1750647051859,-460.0,0.00022465,2]
[367072945,1750647051869,-151.0,0.00022465,7]
[367072946,1750647051878,-460.0,0.00022465,2]
[367072947,1750647051887,-1408.58,0.00022465,2]
[367072948,1750647051896,-460.0,0.00022465,2]
[367072949,1750647051906,-460.0,0.00022465,2]
[367072950,1750647051915,-721.43,0.00022465,2]
[367072951,1750647051925,-460.0,0.00022465,2]
[367072952,1750647051935,-460.0,0.00022465,2]
[367072953,1750647051944,-460.0,0.00022465,2]
[367072954,1750647051954,-460.0,0.00022465,2]
[367072955,1750647051963,-519.05,0.00022465,2]
[367072956,1750647051972,-602.67,0.00022465,2]
[367072957,1750647051982,-460.0,0.00022465,2]
[367072958,1750647051991,-460.0,0.00022465,2]
[367072959,1750647052001,-460.0,0.00022465,2]
[367072960,1750647052010,-1000.0,0.00022465,2]
[367072961,1750647052020,-460.0,0.00022465,2]
[367072962,1750647052029,-460.0,0.00022465,2]
[367072963,1750647052038,-713.03,0.00022465,2]
[367072964,1750647052047,-554.16,0.00022465,2]
[367072965,1750647052056,-151.0,0.00022465,7]
[367072966,1750647052066,-460.0,0.00022465,2]
[367072967,1750647052076,-1533.75,0.00022465,2]
[367072968,1750647052085,-1008.04,0.00022465,2]
[367072969,1750647052094,-460.0,0.00022465,2]
[367072970,1750647052103,-460.0,0.00022465,2]
[367072971,1750647052112,-1682.93,0.00022465,2]
[367072972,1750647052122,-486.85,0.00022465,2]
[367072973,1750647052131,-1965.30095855,0.00022465,2]
[367072974,1750647052937,-723.13,0.00021917,2]
[367072975,1750647052946,-93.62,0.00021917,2]
[367072976,1750647053395,-537.26727128,0.00021611,2]
[367072977,1750647053405,-500.0,0.00021611,2]
[367072978,1750647053415,-176.86585575,0.00021611,2]
[367072979,1750647053424,-352.3241521,0.00021611,2]
[367072980,1750647053434,-367.78040327,0.00021917,2]
[367072981,1750647053444,-460.0,0.00021917,2]
[367072982,1750647053453,-408.17416876,0.00021917,2]
[367072983,1750647053462,-460.0,0.00021917,2]
[367072984,1750647053472,-723.13,0.00022191,2]
[367072985,1750647053482,-151.0,0.00022191,7]
[367072986,1750647053492,-460.0,0.00022191,2]
[367072987,1750647053502,-189.520958,0.00022191,7]
[367072988,1750647053515,-863.213119,0.00022191,7]
[367072989,1750647053525,-6.89904145,0.00022465,2]
[367072990,1750647053534,-151.0,0.00022465,7]
[367072991,1750647053544,-460.0,0.00022465,2]
[367072992,1750647053554,-1258.0,0.00022465,2]
[367072993,1750647053564,-460.0,0.00022465,2]
[367072994,1750647053575,-460.0,0.00022465,2]
[367072995,1750647053585,-3508.31,0.00022465,2]
[367072996,1750647053595,-460.0,0.00022465,2]
[367072997,1750647053604,-1014.72,0.00022465,2]
[367072998,1750647053614,-460.0,0.00022465,2]
[367072999,1750647053624,-460.0,0.00022465,2]
[367073000,1750647053637,-765.92,0.00022465,2]
[367073001,1750647053646,-460.0,0.00022465,2]
[367073002,1750647053656,-460.0,0.00022465,2]
[367073003,1750647053666,-460.0,0.00022465,2]
[367073004,1750647053884,-460.0,0.00022465,2]
[367073005,1750647053894,-679.99,0.00022465,2]
[367073006,1750647053904,-460.0,0.00022465,2]
[367073007,1750647053913,-326.78062633,0.00022465,2]
[367073008,1750647053923,-460.0,0.00022465,2]
[367073009,1750647053932,-460.0,0.00022465,2]
[367073010,1750647053942,-151.0,0.00022465,7]
[367073011,1750647053952,-203.592722,0.00022465,7]
[367073012,1750647053962,-399.28086384,0.00022465,2]
[367073013,1750647053972,-460.0,0.00022465,2]
[367073014,1750647053982,-489.58915374,0.00022465,2]
[367073015,1750647053992,-460.0,0.00022465,2]
[367073016,1750647054002,-1037.33,0.00022465,2]
[367073017,1750647054011,-476.52,0.00022465,2]
[367073018,1750647054021,-709.54,0.00022465,2]
[367073019,1750647054031,-460.0,0.00022465,2]
[367073020,1750647054040,-460.0,0.00022465,2]
[367073021,1750647054051,-865.97,0.00022465,2]
[367073022,1750647054061,-460.0,0.00022465,2]
[367073023,1750647054071,-460.0,0.00022465,2]
[367073024,1750647054081,-700.65,0.00022465,2]
[367073025,1750647054090,-460.0,0.00022465,2]
[367073026,1750647054100,-460.0,0.00022465,2]
[367073027,1750647054110,-460.0,0.00022465,2]
[367073028,1750647054119,-460.0,0.00022465,2]
[367073029,1750647054129,-562.06,0.00022465,2]
[367073030,1750647054139,-552.67,0.00022465,2]
[367073031,1750647054149,-460.0,0.00022465,2]
[367073032,1750647054158,-460.0,0.00022465,2]
[367073033,1750647054168,-460.0,0.00022465,2]
[367073034,1750647054178,-460.0,0.00022465,2]
[367073035,1750647054188,-505.26,0.00022465,2]
[367073036,1750647054198,-460.0,0.00022465,2]
[367073037,1750647054207,-796.68,0.00022465,2]
[367073038,1750647054217,-460.0,0.00022465,2]
[367073039,1750647054226,-460.0,0.00022465,2]
[367073040,1750647054236,-1031.44,0.00022465,2]
[367073041,1750647054246,-460.0,0.00022465,2]
[367073042,1750647054256,-506.33,0.00022465,2]
[367073043,1750647054266,-248.232613,0.00022465,7]
[367073044,1750647054276,-248.232613,0.00022465,7]
[367073045,1750647054286,-460.0,0.00022465,2]
[367073046,1750647054298,-460.0,0.00022465,2]
[367073047,1750647054307,-702.06,0.00022465,2]
[367073048,1750647054317,-460.0,0.00022465,2]
[367073049,1750647054327,-542.23,0.00022465,2]
[367073050,1750647054337,-2161.11,0.00022465,2]
[367073051,1750647054347,-460.0,0.00022465,2]
[367073052,1750647054356,-460.0,0.00022465,2]
[367073053,1750647054366,-151.0,0.00022465,7]
[367073054,1750647054376,-460.0,0.00022465,2]
[367073055,1750647054386,-460.0,0.00022465,2]
[367073056,1750647054396,-978.25,0.00022465,2]
[367073057,1750647054405,-412.87126467,0.00022465,2]
[367073058,1750647054415,-151.953828,0.00022465,7]
[367073059,1750647054425,-460.0,0.00022465,2]
[367073060,1750647054434,-151.0,0.00022465,7]
[367073061,1750647054443,-460.0,0.00022465,2]
[367073062,1750647054453,-460.0,0.00022465,2]
[367073063,1750647054462,-460.0,0.00022465,2]
[367073064,1750647054472,-5968.18,0.00022465,2]
[367073065,1750647054481,-460.0,0.00022465,2]
[367073066,1750647054491,-520.71000127,0.00022465,2]
[367073067,1750647054501,-460.0,0.00022465,2]
[367073068,1750647054511,-460.0,0.00022465,2]
[367073069,1750647054520,-460.0,0.00022465,2]
[367073070,1750647054530,-794.97,0.00022465,2]
[367073071,1750647054540,-460.0,0.00022465,2]
[367073072,1750647054551,-2293.33,0.00022465,2]
[367073073,1750647054560,-301.9610187,0.00022465,2]
[367073074,1750647054570,-460.0,0.00022465,2]
[367073075,1750647054580,-799.98,0.00022465,2]
[367073076,1750647054590,-460.0,0.00022465,2]
[367073077,1750647054600,-5012.61,0.00022465,2]
[367073078,1750647054610,-460.0,0.00022465,2]
[367073079,1750647054620,-460.0,0.00022465,2]
[367073080,1750647054631,-460.0,0.00022465,2]
[367073081,1750647054643,-182.289606,0.00022465,7]
[367073082,1750647054653,-182.289606,0.00022465,7]
[367073083,1750647054663,-812.85,0.00022465,2]
[367073084,1750647054673,-793.0,0.00022465,2]
[367073085,1750647054684,-582.65,0.00022465,2]
[367073086,1750647054693,-460.0,0.00022465,2]
[367073087,1750647054703,-852.15,0.00022465,2]
[367073088,1750647054713,-1319.72,0.00022465,2]
[367073089,1750647054722,-182.289606,0.00022465,7]
[367073090,1750647054732,-182.289606,0.00022465,7]
[367073091,1750647054742,-460.0,0.00022465,2]
[367073092,1750647054752,-743.93,0.00022465,2]
[367073093,1750647054762,-552.83,0.00022465,2]
[367073094,1750647054771,-1589.28,0.00022465,2]
[367073095,1750647054781,-460.0,0.00022465,2]
[367073096,1750647054792,-460.0,0.00022465,2]
[367073097,1750647054801,-1083.08,0.00022465,2]
[367073098,1750647054811,-8724.16,0.00022465,2]
[367073099,1750647054821,-636.42,0.00022465,2]
[367073100,1750647054831,-460.0,0.00022465,2]
[367073101,1750647054840,-460.0,0.00022465,2]
[367073102,1750647054850,-1179.15,0.00022465,2]
[367073103,1750647054859,-3962.65,0.00022465,2]
[367073104,1750647054869,-460.0,0.00022465,2]
[367073105,1750647054879,-1122.68,0.00022465,2]
[367073106,1750647054888,-460.0,0.00022465,2]
[367073107,1750647054898,-528.52,0.00022465,2]
[367073108,1750647054907,-460.0,0.00022465,2]
[367073109,1750647054917,-1119.2,0.00022465,2]
[367073110,1750647054926,-855.06,0.00022465,2]
[367073111,1750647054936,-1678.32,0.00022465,2]
[367073112,1750647054945,-460.0,0.00022465,2]
[367073113,1750647054955,-151.0,0.00022465,7]
[367073114,1750647054964,-460.0,0.00022465,2]
[367073115,1750647054973,-154.312174,0.00022465,7]
[367073116,1750647054982,-460.0,0.00022465,2]
[367073117,1750647054992,-1117.05117027,0.00022465,2]
[367073118,1750647055007,-750.29882973,0.00022465,2]
[367073119,1750647055016,-460.0,0.00022465,2]
[367073120,1750647055026,-1149.66,0.00022465,2]
[367073121,1750647055035,-460.0,0.00022465,2]
[367073122,1750647055046,-460.0,0.00022465,2]
[367073123,1750647055055,-460.0,0.00022465,2]
[367073124,1750647055064,-460.0,0.00022465,2]
[367073125,1750647055074,-500.0,0.00022465,2]
[367073126,1750647055084,-1999.04,0.00022465,2]
[367073127,1750647055093,-460.0,0.00022465,2]
[367073128,1750647055103,-1097.54,0.00022465,2]
[367073129,1750647055113,-460.0,0.00022465,2]
[367073130,1750647055123,-460.0,0.00022465,2]
[367073131,1750647055132,-460.0,0.00022465,2]
[367073132,1750647055142,-2752.44,0.00022465,2]
[367073133,1750647055151,-460.0,0.00022465,2]
[367073134,1750647055160,-495.90236181,0.00022465,2]
[367073135,1750647055171,-1356.76,0.00022465,2]
[367073136,1750647055180,-460.0,0.00022465,2]
[367073137,1750647055190,-1141.70296464,0.00022465,2]
[367073138,1750647055837,-1327.65,0.00021907,10]
[367073139,1750647055846,-460.0,0.00021917,2]
[367073140,1750647055856,-460.0,0.00021917,2]
[367073141,1750647055866,-460.0,0.00022191,2]
[367073142,1750647055875,-460.0,0.00022191,2]
[367073143,1750647055885,-351.34703536,0.00022465,2]
[367073144,1750647055895,-461.91210482,0.00022465,2]
[367073145,1750647055904,-460.0,0.00022465,2]
[367073146,1750647055913,-601.71,0.00022465,2]
[367073147,1750647055922,-460.0,0.00022465,2]
[367073148,1750647055932,-2592.18,0.00022465,2]
[367073149,1750647055942,-460.0,0.00022465,2]
[367073150,1750647055951,-693.03,0.00022465,2]
[367073151,1750647055960,-545.46,0.00022465,2]
[367073152,1750647055970,-601.08854006,0.00022465,2]
[367073153,1750647067135,2241.23953707,0.00021279,2]
[367073154,1750647238097,999999.297829,0.00025,30]
[367073155,1750647258832,1100000.69514929,0.00025,30]
[367073156,1750647554270,33800.85512251,0.00025,120]
[367073157,1750647669195,185.0,0.00025,60]
[367073158,1750647963913,173.977509,0.00013699,2]
[367073159,1750648032098,-173.977509,0.00020187,2]
[367073160,1750648032120,-300.0,0.00020561,2]
[367073161,1750648032143,-4705.46337759,0.00020562,2]
[367073162,1750648147115,-20194.53662241,0.00020562,2]
[367073163,1750648147137,-193.3080873,0.0002064,2]
[367073164,1750648147157,-177.355339,0.00020751,2]
[367073179,1750648232845,-228.38843776,0.00021235,2]
[367073180,1750648232855,-207.4,0.00021266,2]
[367073181,1750648232864,-300.0,0.00021278,2]
[367073182,1750648232874,-306.0,0.000216,2]
[367073183,1750648232883,-153.0,0.000216,2]
[367073184,1750648232893,-500.0,0.00021613,2]
[367073186,1750648232903,-356.50007707,0.00021635,2]
[367073187,1750648232913,-365.8891638,0.00021671,2]
[367073189,1750648232922,-365.8891638,0.00021671,2]
[367073191,1750648232932,-162.02821,0.00021675,2]
[367073193,1750648232942,-1200.0,0.00021699,2]
[367073195,1750648232951,-365.8891638,0.000217,2]
[367073197,1750648232960,-365.8891638,0.000217,2]
[367073199,1750648232970,-153.0,0.000217,2]
[367073201,1750648232979,-174.53771657,0.00021807,2]
[367073203,1750648232989,-300.0,0.00021816,2]
[367073205,1750648232999,-231.838,0.000219,2]
[367073207,1750648233009,-365.8891638,0.000219,2]
[367073208,1750648233018,-2441.38056111,0.000219,6]
[367073209,1750648233027,-503.71,0.00021907,3]
[367073210,1750648233036,-251.86,0.00021907,3]
[367073211,1750648233045,-755.58,0.00021907,3]
[367073212,1750648233055,-1106.37,0.00021907,10]
[367073213,1750648233064,-921.98,0.00021907,10]
[367073214,1750648233074,-500.0,0.00021916,2]
[367073215,1750648233087,-376.08708989,0.00021916,2]
[367073216,1750648233096,-161.66380577,0.00021916,2]
[367073218,1750648233105,-202.02,0.00021916,2]
[367073220,1750648233115,-460.0,0.00021917,2]
[367073222,1750648233126,-460.0,0.00021917,2]
[367073223,1750648233136,-460.0,0.00021917,2]
[367073224,1750648233145,-460.0,0.00021917,2]
[367073225,1750648233155,-460.0,0.00021917,2]
[367073226,1750648233166,-460.70210847,0.00021917,2]
[367073227,1750648233175,-974.1,0.00021917,2]
[367073228,1750648233184,-460.0,0.00021917,2]
[367073229,1750648233194,-460.0,0.00021917,2]
[367073230,1750648233203,-460.0,0.00021917,2]
[367073231,1750648233213,-460.0,0.00021917,2]
[367073232,1750648233223,-898.99,0.00021917,2]
[367073233,1750648233232,-460.0,0.00021917,2]
[367073234,1750648233242,-460.0,0.00021917,2]
[367073235,1750648233252,-460.0,0.00021917,2]
[367073236,1750648233261,-423.08832577,0.00021917,2]
[367073237,1750648233271,-460.0,0.00021917,2]
[367073239,1750648233281,-460.0,0.00021917,2]
[367073261,1750648233513,-350.17440749,0.00021917,2]
[367073263,1750648233525,-460.0,0.00021917,2]
[367073265,1750648233535,-487.01,0.00021917,2]
[367073266,1750648233544,-460.0,0.00021917,2]
[367073268,1750648233554,-460.0,0.00021917,2]
[367073270,1750648233564,-460.0,0.00021917,2]
[367073273,1750648233574,-460.0,0.00021917,2]
[367073274,1750648233584,-460.0,0.00021917,2]
[367073276,1750648233593,-460.0,0.00021917,2]
[367073278,1750648233603,-460.0,0.00021917,2]
[367073280,1750648233614,-460.0,0.00021917,2]
[367073282,1750648233624,-460.0,0.00021917,2]
[367073284,1750648233633,-460.0,0.00021917,2]
[367073286,1750648233643,-463.87843467,0.00021917,2]
[367073288,1750648233653,-464.039085,0.00021917,2]
[367073290,1750648233663,-460.0,0.00021917,2]
[367073292,1750648233673,-460.0,0.00021917,2]
[367073294,1750648233683,-460.0,0.00021917,2]
[367073296,1750648233693,-460.0,0.00021917,2]
[367073298,1750648233702,-201.78379069,0.00021917,2]
[367073300,1750648233711,-460.0,0.00021917,2]
[367073302,1750648233721,-460.0,0.00021917,2]
[367073304,1750648233731,-460.0,0.00021917,2]
[367073306,1750648233740,-460.0,0.00021917,2]
[367073308,1750648233751,-460.52977074,0.00021917,2]
[367073309,1750648233762,-460.0,0.00021917,2]
[367073311,1750648233771,-460.0,0.00021917,2]
[367073313,1750648233781,-460.0,0.00021917,2]
[367073315,1750648233791,-500.0,0.00021917,2]
[367073316,1750648233800,-460.0,0.00021917,2]
[367073317,1750648233810,-461.189797,0.00021917,2]
[367073318,1750648233821,-460.0,0.00021917,2]
[367073319,1750648233832,-460.0,0.00021917,2]
[367073320,1750648233841,-380.98714988,0.00021917,2]
[367073321,1750648233851,-460.0,0.00021917,2]
[367073322,1750648233861,-460.0,0.00021917,2]
[367073323,1750648233870,-300.0,0.00021917,2]
[367073324,1750648233880,-460.0,0.00021917,2]
[367073325,1750648233890,-513.58315638,0.00021917,2]
[367073326,1750648233899,-571.62,0.00021917,2]
[367073327,1750648233908,-460.0,0.00021917,2]
[367073328,1750648233918,-609.56,0.00021917,2]
[367073329,1750648233927,-507.87805202,0.00021917,2]
[367073330,1750648233937,-460.0,0.00021917,2]
[367073331,1750648233947,-460.0,0.00021917,2]
[367073332,1750648233956,-460.0,0.00021917,2]
[367073333,1750648233966,-460.0,0.00021917,2]
[367073334,1750648233975,-672.78,0.00021917,2]
[367073335,1750648233985,-460.0,0.00021917,2]
[367073336,1750648233994,-633.61,0.00021917,2]
[367073337,1750648234005,-460.0,0.00021917,2]
[367073338,1750648234015,-460.0,0.00021917,2]
[367073339,1750648234025,-460.0,0.00021917,2]
[367073340,1750648234034,-269.33171345,0.00021917,2]
[367073341,1750648234044,-460.0,0.00021917,2]
[367073342,1750648234053,-460.0,0.00021917,2]
[367073343,1750648234062,-189.12656526,0.00021917,2]
[367073344,1750648234073,-460.0,0.00021917,2]
[367073345,1750648234087,-460.0,0.00021917,2]
[367073346,1750648234096,-407.84362412,0.00021917,2]
[367073347,1750648234106,-870.96,0.00021917,2]
[367073348,1750648234116,-1636.1,0.00021917,2]
[367073349,1750648234125,-460.0,0.00021917,2]
[367073350,1750648234135,-460.0,0.00021917,2]
[367073351,1750648234144,-460.0,0.00021917,2]
[367073352,1750648234154,-460.0,0.00021917,2]
[367073353,1750648234164,-704.07,0.00021917,2]
[367073354,1750648234174,-460.0,0.00021917,2]
[367073355,1750648234183,-460.0,0.00021917,2]
[367073356,1750648234193,-460.0,0.00021917,2]
[367073357,1750648234202,-460.0,0.00021917,2]
[367073358,1750648234211,-759.39,0.00021917,2]
[367073359,1750648234221,-241.49757702,0.00021917,2]
[367073360,1750648234230,-712.16,0.00021917,2]
[367073361,1750648234240,-460.0,0.00021917,2]
[367073362,1750648234251,-607.60284308,0.00021917,2]
[367073363,1750648234260,-552.34596702,0.00021917,2]
[367073364,1750648234269,-460.0,0.00021917,2]
[367073365,1750648234278,-1004.42736303,0.00021917,2]
[367073366,1750648234288,-460.0,0.00021917,2]
[367073367,1750648234297,-460.0,0.00021917,2]
[367073368,1750648234307,-460.0,0.00021917,2]
[367073369,1750648234316,-460.0,0.00021917,2]
[367073370,1750648234326,-460.0,0.00021917,2]
[367073371,1750648234336,-460.0,0.00021917,2]
[367073372,1750648234345,-460.0,0.00021917,2]
[367073373,1750648234355,-507.98,0.00021917,2]
[367073374,1750648234364,-460.0,0.00021917,2]
[367073375,1750648234374,-460.0,0.00021917,2]
[367073376,1750648234383,-460.0,0.00021917,2]
[367073377,1750648234392,-460.0,0.00021917,2]
[367073378,1750648234402,-460.0,0.00021917,2]
[367073379,1750648234411,-460.0,0.00021917,2]
[367073380,1750648234420,-460.0,0.00021917,2]
[367073381,1750648234430,-460.0,0.00021917,2]
[367073382,1750648234439,-460.0,0.00021917,2]
[367073383,1750648234449,-460.0,0.00021917,2]
[367073384,1750648234458,-460.0,0.00021917,2]
[367073385,1750648234467,-460.0,0.00021917,2]
[367073386,1750648234477,-460.0,0.00021917,2]
[367073387,1750648234487,-460.0,0.00021917,2]
[367073388,1750648234496,-603.66924636,0.00021917,2]
[367073389,1750648234506,-460.0,0.00021917,2]
[367073390,1750648234515,-460.0,0.00021917,2]
[367073391,1750648234524,-460.0,0.00021917,2]
[367073392,1750648234534,-460.0,0.00021917,2]
[367073393,1750648234543,-460.0,0.00021917,2]
[367073394,1750648234553,-494.46,0.00021917,2]
[367073395,1750648234562,-469.34,0.00021917,2]
[367073396,1750648234572,-460.0,0.00021917,2]
[367073397,1750648234581,-460.0,0.00021917,2]
[367073398,1750648234591,-460.0,0.00021917,2]
[367073399,1750648234600,-460.0,0.00021917,2]
[367073400,1750648234609,-460.0,0.00021917,2]
[367073401,1750648234619,-460.89151293,0.00021917,2]
[367073402,1750648234629,-460.0,0.00021917,2]
[367073403,1750648234639,-460.0,0.00021917,2]
[367073404,1750648234648,-333.63538196,0.00021917,2]
[367073405,1750648234657,-460.0,0.00021917,2]
[367073406,1750648234667,-460.0,0.00021917,2]
[367073407,1750648234677,-460.0,0.00021917,2]
[367073408,1750648234686,-460.0,0.00021917,2]
[367073409,1750648234696,-587.54,0.00021917,2]
[367073410,1750648234706,-460.0,0.00021917,2]
[367073411,1750648234715,-460.0,0.00021917,2]
[367073412,1750648234725,-460.0,0.00021917,2]
[367073413,1750648234735,-460.0,0.00021917,2]
[367073414,1750648234744,-460.0,0.00021917,2]
[367073415,1750648234754,-460.0,0.00021917,2]
[367073416,1750648234764,-460.0,0.00021917,2]
[367073417,1750648234773,-460.0,0.00021917,2]
[367073418,1750648234783,-433.07789766,0.00021917,2]
[367073419,1750648234792,-460.0,0.00021917,2]
[367073420,1750648234801,-1001.15,0.00021917,2]
[367073421,1750648234811,-460.0,0.00021917,2]
[367073422,1750648234820,-460.0,0.00021917,2]
[367073423,1750648234830,-460.0,0.00021917,2]
[367073424,1750648234839,-460.0,0.00021917,2]
[367073425,1750648234848,-460.0,0.00021917,2]
[367073426,1750648234860,-1227.59,0.00021917,2]
[367073427,1750648234870,-460.0,0.00021917,2]
[367073428,1750648234879,-460.0,0.00021917,2]
[367073429,1750648234889,-1295.65,0.00021917,2]
[367073430,1750648234899,-460.0,0.00021917,2]
[367073431,1750648234908,-487.21,0.00021917,2]
[367073432,1750648234917,-460.0,0.00021917,2]
[367073433,1750648234926,-1107.82,0.00021917,2]
[367073434,1750648234936,-460.0,0.00021917,2]
[367073435,1750648234946,-307.36143173,0.00021917,2]
[367073436,1750648234956,-460.0,0.00021917,2]
[367073437,1750648234965,-460.0,0.00021917,2]
[367073438,1750648234975,-465.51,0.00021917,2]
[367073439,1750648234984,-460.0,0.00021917,2]
[367073440,1750648234994,-460.0,0.00021917,2]
[367073441,1750648235003,-700.01,0.00021917,2]
[367073442,1750648235012,-460.0,0.00021917,2]
[367073443,1750648235022,-514.71,0.00021917,2]
[367073444,1750648235032,-460.0,0.00021917,2]
[367073445,1750648235041,-460.0,0.00021917,2]
[367073446,1750648235051,-460.0,0.00021917,2]
[367073447,1750648235060,-460.0,0.00021917,2]
[367073448,1750648235070,-460.0,0.00021917,2]
[367073449,1750648235084,-3125.12,0.00021917,2]
[367073450,1750648235095,-460.0,0.00021917,2]
[367073451,1750648235104,-460.0,0.00021917,2]
[367073452,1750648235114,-460.0,0.00021917,2]
[367073453,1750648235125,-265.678154,0.00021917,2]
[367073454,1750648235135,-460.0,0.00021917,2]
[367073455,1750648235145,-1915.15,0.00021917,2]
[367073456,1750648235155,-854.22,0.00021917,2]
[367073457,1750648235165,-460.0,0.00021917,2]
[367073458,1750648235175,-460.0,0.00021917,2]
[367073459,1750648235185,-460.0,0.00021917,2]
[367073460,1750648235195,-460.0,0.00021917,2]
[367073461,1750648235203,-934.99,0.00021917,2]
[367073462,1750648235212,-460.0,0.00021917,2]
[367073463,1750648235222,-728.41,0.00021917,2]
[367073464,1750648235231,-900.05,0.00021917,2]
[367073465,1750648235240,-460.0,0.00021917,2]
[367073466,1750648235250,-1917.46,0.00021917,2]
[367073467,1750648235260,-482.35,0.00021917,2]
[367073468,1750648235269,-460.0,0.00021917,2]
[367073469,1750648235279,-460.0,0.00021917,2]
[367073470,1750648235289,-460.0,0.00021917,2]
[367073471,1750648235299,-985.5,0.00021917,2]
[367073472,1750648235309,-460.0,0.00021917,2]
[367073473,1750648235319,-460.0,0.00021917,2]
[367073474,1750648235329,-460.0,0.00021917,2]
[367073475,1750648235339,-462.77023927,0.00021917,2]
[367073476,1750648235348,-460.0,0.00021917,2]
[367073477,1750648235358,-460.0,0.00021917,2]
[367073478,1750648235367,-460.0,0.00021917,2]
[367073479,1750648235377,-393.27004697,0.00021917,2]
[367073480,1750648235387,-460.0,0.00021917,2]
[367073481,1750648235396,-460.70406957,0.00021917,2]
[367073482,1750648235405,-259.84165144,0.00021917,2]
[367073483,1750648235415,-460.0,0.00021917,2]
[367073484,1750648235424,-1271.91,0.00021917,2]
[367073485,1750648235434,-691.37,0.00021917,2]
[367073486,1750648235443,-460.0,0.00021917,2]
[367073487,1750648235453,-460.0,0.00021917,2]
[367073488,1750648235463,-460.0,0.00021917,2]
[367073489,1750648235472,-460.0,0.00021917,2]
[367073490,1750648235483,-522.97,0.00021917,2]
[367073491,1750648235493,-460.0,0.00021917,2]
[367073492,1750648235504,-1269.48,0.00021917,2]
[367073493,1750648235515,-460.0,0.00021917,2]
[367073494,1750648235525,-460.0,0.00021917,2]
[367073495,1750648235536,-460.0,0.00021917,2]
[367073496,1750648235547,-460.0,0.00021917,2]
[367073497,1750648235557,-665.38,0.00021917,2]
[367073498,1750648235567,-460.0,0.00021917,2]
[367073499,1750648235577,-460.0,0.00021917,2]